bitfinex/quotes_SOLUSD_20250830
["timestamp","ask_amount","ask_price","bid_price","bid_amount"]
[1756548676985,30.72547778,203.31,203.3,0.03]
[1756548677198,31.38547778,203.31,203.3,0.03]
[1756548677418,36.30407499,203.31,203.3,0.03]
[1756548679512,50.04183057,203.31,203.3,0.03]
[1756548679886,50.04183057,203.31,203.28,0.03]
[1756548679887,13.73775558,203.3,203.28,0.03]
[1756548680105,39.59559401,203.26,203.25,0.03]
[1756548680425,83.30323336,203.26,203.21,1.972435]
[1756548680589,4.72547778,203.22,203.18,0.7]
[1756548680787,38.88,203.21,203.18,0.7]
[1756548680989,4.72547778,203.2,203.18,0.7]
[1756548684820,4.72547778,203.2,203.17,0.2]
[1756548685720,5.38547778,203.2,203.17,0.2]
[1756548686092,4.72547778,203.2,203.17,0.2]
[1756548686606,5.38547778,203.2,203.17,0.2]
[1756548686913,10.30673762,203.2,203.17,0.2]
[1756548687424,5.38547778,203.2,203.17,0.2]
[1756548687804,44.18547778,203.2,203.17,0.2]
[1756548688617,40.39775558,203.23,203.17,5.12195142]
[1756548688799,4.72547778,203.22,203.19,0.9]
[1756548689133,4.72547778,203.22,203.2,0.7]
[1756548689305,4.72547778,203.22,203.21,0.7]
[1756548690129,4.72547778,203.22,203.19,0.9]
[1756548690699,38.82,203.23,203.2,0.7]
[1756548690904,4.72547778,203.22,203.2,0.7]
[1756548694114,4.72547778,203.22,203.19,0.2]
[1756548694322,4.72547778,203.22,203.19,0.88]
[1756548694814,4.72547778,203.22,203.2,0.03]
[1756548695202,4.72547778,203.21,203.2,0.03]
[1756548695420,5.41547778,203.21,203.2,0.03]
[1756548696027,4.72547778,203.21,203.2,0.03]
[1756548697720,38.76,203.22,203.2,0.03]
[1756548697923,4.72547778,203.21,203.2,0.03]
[1756548698809,4.72547778,203.21,203.2,0.71]
[1756548698810,38.74,203.21,203.2,0.71]
[1756548699008,38.74,203.21,203.2,0.03]
[1756548699213,43.46547778,203.21,203.2,0.03]
[1756548700130,4.72547778,203.21,203.2,0.03]
[1756548703028,5.41547778,203.21,203.2,0.03]
[1756548703199,4.72547778,203.21,203.2,0.03]
[1756548704325,0.06,203.32,203.2,5.43547778]
[1756548704533,4.72547778,203.28,203.22,4.92054288]
[1756548704717,4.72547778,203.26,203.22,0.68]
[1756548704919,4.72547778,203.26,203.23,0.68]
[1756548705430,43.42547778,203.27,203.23,0.68]
[1756548705726,44.11547778,203.27,203.23,0.68]
[1756548706710,39.39,203.27,203.23,0.68]
[1756548707028,43.42547778,203.27,203.23,10.32598258]
[1756548707535,43.42547778,203.27,203.23,5.40547778]
[1756548707733,44.11547778,203.27,203.23,0.68]
[1756548708036,38.68,203.26,203.23,0.68]
[1756548710428,38.68,203.26,203.22,4.72547778]
[1756548710610,4.72547778,203.23,203.2,0.03]
[1756548710825,4.72547778,203.22,203.2,0.03]
[1756548711835,44.05547778,203.24,203.2,0.71]
[1756548712213,44.05547778,203.24,203.2,5.63112835]
[1756548712413,44.05547778,203.24,203.2,0.71]
[1756548713110,4.72547778,203.22,203.2,0.03]
[1756548713624,4.72547778,203.21,203.2,0.03]
[1756548715725,0.69,203.22,203.2,0.03]
[1756548715934,4.72547778,203.21,203.2,0.03]
[1756548716443,5.41547778,203.22,203.2,0.03]
[1756548716935,4.72547778,203.21,203.2,0.03]
[1756548717135,0.69,203.24,203.2,0.03]
[1756548717340,5.41547778,203.24,203.2,0.03]
[1756548717537,38.62,203.23,203.2,0.71]
[1756548718341,0.69,203.26,203.21,0.68]
[1756548718513,0.06,203.28,203.24,4.72547778]
[1756548718714,0.06,203.28,203.25,0.68]
[1756548718937,0.06,203.28,203.25,5.40547778]
[1756548719146,0.06,203.28,203.26,0.68]
[1756548719533,0.06,203.28,203.27,0.68]
[1756548719944,0.06,203.28,203.27,5.40547778]
[1756548721436,0.06,203.28,203.27,10.32504289]
[1756548721637,0.06,203.28,203.27,5.59956511]
[1756548721924,0.06,203.28,203.27,10.32504289]
[1756548724454,0.06,203.28,203.25,1.971949]
[1756548724455,0.06,203.28,203.25,5.40547778]
[1756548724752,0.06,203.28,203.23,26.0]
[1756548724753,4.78547778,203.28,203.23,5.40547778]
[1756548725053,0.06,203.28,203.24,5.40547778]
[1756548725258,5.45547778,203.28,203.24,0.68]
[1756548725635,4.78547778,203.28,203.23,4.72547778]
[1756548725852,5.39547778,203.27,203.22,4.72547778]
[1756548726053,4.72547778,203.27,203.23,0.68]
[1756548726267,4.78547778,203.28,203.23,10.32594776]
[1756548726556,5.45547778,203.28,203.23,4.92046998]
[1756548726752,5.39547778,203.27,203.23,0.68]
[1756548726934,5.39547778,203.27,203.22,4.72547778]
[1756548727256,4.72547778,203.27,203.23,0.68]
[1756548727456,4.72547778,203.27,203.24,0.68]
[1756548727955,4.72547778,203.27,203.22,10.32615693]
[1756548728152,0.06,203.28,203.21,4.72547778]
[1756548728153,5.39547778,203.26,203.21,4.72547778]
[1756548728348,5.39547778,203.25,203.2,5.43547778]
[1756548728539,4.72547778,203.22,203.2,0.03]
[1756548729854,39.33,203.24,203.2,0.03]
[1756548730163,4.72547778,203.22,203.2,0.03]
[1756548730350,0.67,203.23,203.2,0.03]
[1756548730532,4.72547778,203.22,203.2,0.03]
[1756548731765,5.39547778,203.22,203.2,0.03]
[1756548732567,0.67,203.21,203.2,0.03]
[1756548732873,5.39547778,203.21,203.2,0.03]
[1756548733068,4.72547778,203.21,203.2,0.03]
[1756548734068,0.67,203.3,203.2,36.16095556]
[1756548734269,0.67,203.3,203.26,4.72547778]
[1756548734651,0.67,203.3,203.27,4.72547778]
[1756548735151,0.67,203.3,203.27,9.64504289]
[1756548735370,0.06,203.31,203.27,9.64504289]
[1756548735569,0.06,203.31,203.27,10.32504289]
[1756548735750,0.06,203.31,203.26,4.91979306]
[1756548735944,4.78547778,203.31,203.26,9.64527084]
[1756548736170,4.78547778,203.31,203.26,10.32527084]
[1756548736673,4.78547778,203.31,203.27,0.68]
[1756548737369,5.01547778,203.31,203.26,4.72547778]
[1756548737669,0.67,203.3,203.26,5.40547778]
[1756548737870,0.67,203.3,203.27,4.72547778]
[1756548739753,0.06,203.32,203.29,4.72547778]
[1756548740076,0.06,203.32,203.29,5.40547778]
[1756548740465,0.06,203.32,203.29,4.72547778]
[1756548741573,5.39547778,203.31,203.26,4.72547778]
[1756548741763,4.72547778,203.31,203.26,5.40547778]
[1756548741962,0.67,203.3,203.26,4.72547778]
[1756548742549,0.67,203.3,203.26,5.40547778]
[1756548742752,0.67,203.3,203.26,5.59973847]
[1756548742968,0.67,203.3,203.27,4.72547778]
[1756548743479,4.72547778,203.31,203.27,4.72547778]
[1756548743660,5.39547778,203.31,203.27,4.72547778]
[1756548744174,5.39547778,203.31,203.26,5.59973847]
[1756548744175,0.67,203.3,203.26,5.59973847]
[1756548744475,4.72547778,203.31,203.27,4.72547778]
[1756548744679,0.67,203.31,203.27,4.72547778]
[1756548744883,0.06,203.32,203.29,4.72547778]
[1756548745072,0.06,203.32,203.31,4.72547778]
[1756548745255,0.06,203.32,203.31,0.68]
[1756548745456,0.06,203.32,203.31,5.40547778]
[1756548746482,0.06,203.32,203.31,10.32407499]
[1756548746884,0.06,203.32,203.29,1.971657]
[1756548747064,0.06,203.32,203.24,26.0]
[1756548747065,4.72547778,203.31,203.26,5.40547778]
[1756548747270,5.45547778,203.32,203.27,0.68]
[1756548747468,5.45547778,203.32,203.28,0.68]
[1756548747976,5.45547778,203.32,203.27,4.72547778]
[1756548748279,5.45547778,203.32,203.27,5.40547778]
[1756548748785,0.73,203.32,203.28,4.72547778]
[1756548749158,0.73,203.32,203.28,5.40547778]
[1756548749981,0.06,203.32,203.3,4.72547778]
[1756548750863,0.06,203.32,203.31,4.72547778]
[1756548751263,0.06,203.32,203.29,5.5990625]
[1756548751463,0.06,203.32,203.31,4.72547778]
[1756548751972,0.06,203.32,203.31,5.40547778]
[1756548752175,0.06,203.32,203.31,10.32407499]
[1756548753066,0.06,203.32,203.29,5.59888399]
[1756548753261,0.06,203.32,203.3,4.72547778]
[1756548753971,0.06,203.32,203.31,4.72547778]
[1756548758283,0.06,203.32,203.3,4.72547778]
[1756548759387,0.06,203.32,203.3,5.40547778]
[1756548760273,0.06,203.32,203.3,10.32430676]
[1756548762670,0.06,203.32,203.3,5.40547778]
[1756548763279,0.06,203.32,203.31,4.72547778]
[1756548765099,0.06,203.32,203.31,10.32407499]
[1756548765981,0.06,203.32,203.31,12.29553799]
[1756548768168,0.06,203.32,203.31,50.87553799]
[1756548768365,0.06,203.33,203.31,50.87553799]
[1756548768366,0.06,203.33,203.32,13.73775558]
[1756548768570,1e-08,203.33,203.32,19.14323336]
[1756548768982,1e-08,203.33,203.32,24.06158866]
[1756548769181,1e-08,203.33,203.32,26.03256566]
[1756548771594,1e-08,203.33,203.32,38.29481008]
[1756548771773,1e-08,203.33,203.32,91.10440119]
[1756548773096,1e-08,203.33,203.32,90.61256566]
[1756548773473,1e-08,203.33,203.32,37.61481008]
[1756548773674,1e-08,203.33,203.32,76.19481008]
[1756548774186,1e-08,203.33,203.32,38.29481008]
[1756548774500,1e-08,203.33,203.32,76.19481008]
[1756548775600,1e-08,203.33,203.32,76.87481008]
[1756548775805,1e-08,203.33,203.32,76.19481008]
[1756548775974,1e-08,203.33,203.32,71.4693323]
[1756548776174,1e-08,203.33,203.32,76.19481008]
[1756548777479,1e-08,203.33,203.32,76.87481008]
[1756548778005,1e-08,203.33,203.32,76.19481008]
[1756548778582,1e-08,203.33,203.32,76.87481008]
[1756548783501,1e-08,203.33,203.32,76.19481008]
[1756548783990,1e-08,203.33,203.32,76.88481008]
[1756548784505,0.06,203.35,203.34,39.59559401]
[1756548784680,0.06,203.35,203.34,83.04323336]
[1756548784988,0.06,203.35,203.34,69.30547778]
[1756548785190,0.06,203.35,203.34,71.27635778]
[1756548785510,0.77,203.35,203.34,40.55088]
[1756548786210,0.77,203.35,203.34,1.97088]
[1756548786408,0.77,203.35,203.34,40.55088]
[1756548786622,0.77,203.35,203.34,1.97088]
[1756548790088,5.49547778,203.35,203.32,0.03]
[1756548790283,4.72547778,203.34,203.32,0.03]
[1756548790517,4.72547778,203.33,203.32,0.03]
[1756548790818,5.43547778,203.33,203.32,0.03]
[1756548792705,10.35359119,203.33,203.32,0.03]
[1756548796016,13.66298134,203.33,203.32,0.03]
[1756548796802,65.83857535,203.33,203.32,0.03]
[1756548796996,65.98073692,203.33,203.32,0.03]
[1756548800223,70.7062147,203.33,203.32,0.03]
[1756548801406,39.73775558,203.3,203.29,0.03]
[1756548801610,49.18871114,203.3,203.29,0.03]
[1756548801812,53.20338823,203.3,203.29,0.03]
[1756548803399,58.11984488,203.3,203.29,0.03]
[1756548804424,54.81755029,203.3,203.29,0.03]
[1756548804830,93.39755029,203.3,203.29,0.03]
[1756548805934,96.69750974,203.3,203.29,0.03]
[1756548807436,93.39755029,203.3,203.29,0.03]
[1756548809915,54.81755029,203.3,203.29,0.03]
[1756548810126,87.98207251,203.3,203.29,0.03]
[1756548810553,93.41755029,203.3,203.29,0.03]
[1756548818446,4.72547778,203.3,203.29,0.74]
[1756548818635,43.32547778,203.3,203.29,0.74]
[1756548819654,0.77,203.33,203.29,0.74]
[1756548819655,43.38547778,203.33,203.29,0.74]
[1756548820029,43.38547778,203.33,203.29,2.711949]
[1756548820529,43.38547778,203.33,203.3,0.71]
[1756548821030,4.72547778,203.32,203.31,0.71]
[1756548821334,4.72547778,203.32,203.29,0.03]
[1756548821735,4.72547778,203.32,203.3,0.71]
[1756548822336,4.72547778,203.31,203.3,0.71]
[1756548822535,43.32547778,203.31,203.3,0.71]
[1756548823832,44.03547778,203.31,203.29,0.03]
[1756548824152,10.16095556,203.3,203.29,0.03]
[1756548824335,23.89871114,203.3,203.29,0.03]
[1756548824729,4.72547778,203.3,203.29,0.03]
[1756548826629,9.64431693,203.3,203.29,0.03]
[1756548827237,14.36979471,203.3,203.29,0.03]
[1756548827444,9.64431693,203.3,203.29,0.03]
[1756548827828,43.30547778,203.3,203.29,0.74]
[1756548829531,43.30547778,203.3,203.29,0.03]
[1756548830061,4.9783591,203.32,203.29,0.03]
[1756548830249,4.72547778,203.3,203.29,0.03]
[1756548831034,43.30547778,203.3,203.29,0.03]
[1756548832437,53.65979471,203.3,203.29,0.03]
[1756548832752,56.96761219,203.3,203.29,0.03]
[1756548835633,51.53213441,203.3,203.29,0.03]
[1756548836061,82.96761219,203.3,203.29,0.03]
[1756548836444,82.25761219,203.3,203.29,0.03]
[1756548838363,96.70536777,203.3,203.29,0.03]
[1756548839084,70.70536777,203.3,203.28,0.03]
[1756548839270,26.0,203.27,203.26,0.03]
[1756548839447,86.35105084,203.27,203.26,0.03]
[1756548839647,87.06105084,203.27,203.26,0.03]
[1756548840368,91.98061595,203.27,203.26,0.03]
[1756548850079,91.98061595,203.27,203.22,0.03]
[1756548850080,39.59559401,203.24,203.22,0.03]
[1756548850259,34.03329526,203.24,203.23,0.71]
[1756548850577,72.61329526,203.24,203.23,0.71]
[1756548851480,77.53358654,203.24,203.23,0.71]
[1756548854184,74.22576906,203.24,203.23,0.71]
[1756548854372,77.53858215,203.24,203.23,0.71]
[1756548855586,72.61829087,203.24,203.23,0.71]
[1756548856361,3.31281309,203.24,203.23,0.71]
[1756548856566,43.30547778,203.24,203.23,0.71]
[1756548857189,4.72547778,203.24,203.23,0.71]
[1756548857361,43.30547778,203.24,203.23,0.71]
[1756548863795,4.72547778,203.24,203.23,0.71]
[1756548863968,43.30547778,203.24,203.23,0.71]
[1756548868496,38.58,203.24,203.23,0.71]
[1756548868698,43.30547778,203.25,203.23,0.71]
[1756548869998,127.28,203.26,203.23,5.6304427]
[1756548870195,38.58,203.25,203.23,5.6304427]
[1756548870504,38.58,203.25,203.24,0.68]
[1756548870871,127.28,203.26,203.24,0.68]
[1756548871877,38.64,203.27,203.23,10.6108857]
[1756548872077,38.64,203.27,203.24,0.71]
[1756548872377,0.06,203.27,203.24,10.35574019]
[1756548872577,0.06,203.27,203.24,9.64574019]
[1756548872778,0.06,203.27,203.25,0.71]
[1756548873588,0.06,203.27,203.25,5.62999681]
[1756548873794,0.06,203.27,203.26,0.71]
[1756548876999,0.06,203.27,203.24,10.35572958]
[1756548877407,0.06,203.27,203.24,8.64648643]
[1756548877588,0.06,203.27,203.25,0.71]
[1756548880110,0.06,203.27,203.24,8.64648643]
[1756548880505,3.01623463,203.25,203.23,0.03]
[1756548880712,3.72623463,203.25,203.23,0.03]
[1756548880896,38.56,203.24,203.23,0.03]
[1756548882392,38.56,203.24,203.23,0.74]
[1756548883319,38.56,203.26,203.23,0.74]
[1756548884518,39.27,203.26,203.23,0.74]
[1756548884731,39.27,203.26,203.23,0.03]
[1756548885392,0.71,203.25,203.23,0.03]
[1756548887413,43.98465532,203.24,203.23,0.03]
[1756548887604,47.30163254,203.24,203.23,0.03]
[1756548889105,52.22192382,203.24,203.23,0.03]
[1756548889716,91.9596794,203.24,203.23,0.03]
[1756548890015,70.07789233,203.24,203.23,0.03]
[1756548890514,72.05149633,203.24,203.23,0.03]
[1756548890718,23.16706622,203.23,203.22,0.03]
[1756548890916,30.63023191,203.23,203.22,0.03]
[1756548891124,36.26076529,203.23,203.22,0.03]
[1756548891294,32.11457682,203.23,203.22,0.03]
[1756548892018,32.11457682,203.23,203.21,0.03]
[1756548892198,23.16706622,203.21,203.2,0.03]
[1756548892398,26.48404344,203.21,203.2,0.03]
[1756548892628,27.19404344,203.21,203.2,0.03]
[1756548893306,70.6750611,203.21,203.2,0.03]
[1756548893500,65.96040578,203.21,203.2,0.03]
[1756548893906,27.40040578,203.21,203.2,0.03]
[1756548894117,65.96040578,203.21,203.2,0.03]
[1756548897622,70.6750611,203.21,203.2,0.03]
[1756548903032,70.6750611,203.21,203.19,1e-08]
[1756548903214,39.73775558,203.19,203.17,0.2]
[1756548903408,46.59163254,203.18,203.17,0.2]
[1756548903627,47.31163254,203.18,203.17,0.2]
[1756548904622,69.27465532,203.18,203.17,0.92]
[1756548904817,43.27465532,203.18,203.17,0.92]
[1756548905032,4.71465532,203.18,203.17,0.92]
[1756548905213,48.19639958,203.18,203.17,0.2]
[1756548905525,48.91639958,203.18,203.17,0.2]
[1756548905831,48.19639958,203.18,203.17,0.2]
[1756548906322,88.65415516,203.18,203.17,0.2]
[1756548906513,91.95948257,203.18,203.17,0.2]
[1756548907309,88.65415516,203.18,203.17,0.2]
[1756548907907,131.6,203.2,203.17,0.92]
[1756548908156,38.56,203.19,203.17,0.92]
[1756548908449,4.71465532,203.18,203.17,0.92]
[1756548909238,4.71465532,203.18,203.17,0.2]
[1756548909438,9.63639958,203.18,203.17,0.2]
[1756548910437,136.5214792,203.2,203.17,0.2]
[1756548910639,4.71465532,203.18,203.17,0.2]
[1756548911644,9.63639958,203.18,203.17,0.2]
[1756548912264,24.09415516,203.18,203.17,0.2]
[1756548912941,18.65949984,203.18,203.17,0.2]
[1756548913255,87.93415516,203.18,203.17,0.2]
[1756548914028,49.37415516,203.18,203.17,0.2]
[1756548914245,87.91415516,203.18,203.17,0.2]
[1756548919846,13.73775558,203.18,203.17,0.92]
[1756548920039,0.06,203.21,203.17,0.92]
[1756548920236,0.06,203.21,203.17,0.2]
[1756548920437,4.71465532,203.19,203.17,2.173408]
[1756548920846,4.71465532,203.19,203.18,0.72]
[1756548921550,0.06,203.21,203.18,5.43465532]
[1756548921844,0.06,203.21,203.2,4.71465532]
[1756548922022,0.06,203.21,203.2,9.63591516]
[1756548922354,0.06,203.21,203.2,10.35591516]
[1756548922752,0.06,203.21,203.2,15.07057016]
[1756548931138,0.06,203.24,203.2,32.08837508]
[1756548931339,0.06,203.24,203.23,30.71465532]
[1756548931543,0.06,203.24,203.23,31.20670865]
[1756548931741,0.06,203.24,203.23,33.87875465]
[1756548931963,1e-08,203.24,203.23,33.87875465]
[1756548932164,1e-08,203.24,203.23,38.79928803]
[1756548932340,0.06,203.27,203.26,26.0]
[1756548932537,0.06,203.29,203.24,13.59559401]
[1756548932538,0.06,203.29,203.28,4.71465532]
[1756548933060,0.06,203.29,203.28,5.41465532]
[1756548933666,0.06,203.29,203.28,12.30563642]
[1756548939069,0.06,203.29,203.28,7.5909811]
[1756548939266,0.06,203.29,203.28,11.60563642]
[1756548939561,0.06,203.29,203.28,12.30563642]
[1756548942854,0.06,203.29,203.28,50.80563642]
[1756548943549,0.06,203.29,203.28,7.5909811]
[1756548943754,0.06,203.29,203.28,12.30563642]
[1756548943967,0.06,203.29,203.28,7.5909811]
[1756548944274,0.06,203.29,203.28,12.30563642]
[1756548946168,1e-08,203.32,203.31,39.73775558]
[1756548946366,1e-08,203.32,203.31,82.9524109]
[1756548946679,1e-08,203.32,203.31,83.6524109]
[1756548946882,1e-08,203.32,203.31,85.6235829]
[1756548947664,1e-08,203.32,203.31,90.54218011]
[1756548947859,1e-08,203.32,203.31,91.03403983]
[1756548948066,1e-08,203.32,203.31,52.53403983]
[1756548948374,1e-08,203.32,203.31,91.03403983]
[1756548948682,0.06,203.34,203.31,91.03403983]
[1756548948882,0.06,203.35,203.33,18.4524109]
[1756548949062,0.06,203.35,203.34,43.21465532]
[1756548949254,1e-08,203.36,203.35,13.73775558]
[1756548949453,1e-08,203.36,203.35,19.1524109]
[1756548949758,1e-08,203.36,203.35,24.0700406]
[1756548950170,1e-08,203.36,203.35,62.5500406]
[1756548951458,1e-08,203.36,203.35,24.0700406]
[1756548951760,1e-08,203.36,203.35,64.5208236]
[1756548953262,1e-08,203.36,203.35,11.60306802]
[1756548953571,1e-08,203.36,203.35,50.08306802]
[1756548953967,1e-08,203.36,203.35,50.78306802]
[1756548957467,1e-08,203.36,203.35,12.30306802]
[1756548957674,1e-08,203.36,203.35,50.78306802]
[1756548957881,1e-08,203.36,203.35,11.60306802]
[1756548958080,1e-08,203.36,203.35,50.08306802]
[1756548958955,1e-08,203.36,203.35,50.78306802]
[1756548960685,1e-08,203.36,203.35,50.06306802]
[1756548960859,0.69000001,203.36,203.35,11.60306802]
[1756548961181,0.69000001,203.36,203.35,50.06306802]
[1756548963397,1e-08,203.36,203.35,50.06306802]
[1756548964895,1e-08,203.36,203.35,50.74306802]
[1756548965681,1e-08,203.36,203.35,64.33866203]
[1756548965882,1e-08,203.36,203.35,64.4808236]
[1756548969106,1e-08,203.37,203.35,64.4808236]
[1756548969298,1e-08,203.37,203.36,31.39465532]
[1756548970603,1e-08,203.37,203.36,26.68]
[1756548970991,1e-08,203.37,203.36,31.39465532]
[1756548971193,1e-08,203.37,203.36,36.3120432]
[1756548972426,1e-08,203.37,203.36,38.2828262]
[1756548973193,1e-08,203.37,203.36,76.0628262]
[1756548976813,1e-08,203.37,203.36,76.7428262]
[1756548981739,1e-08,203.37,203.36,76.7728262]
[1756548982650,1e-08,203.37,203.36,32.91817088]
[1756548982830,0.70000001,203.37,203.36,76.0728262]
[1756548983341,1e-08,203.37,203.36,76.0728262]
[1756548984044,1e-08,203.37,203.36,37.6328262]
[1756548984228,1e-08,203.37,203.36,76.0728262]
[1756548984622,1e-08,203.37,203.36,37.6328262]
[1756548984828,1e-08,203.37,203.36,76.0728262]
[1756548985250,0.70000001,203.37,203.36,6.91817088]
[1756548985540,1e-08,203.37,203.36,50.0728262]
[1756548986141,0.70000001,203.37,203.36,50.0728262]
[1756548986736,0.70000001,203.37,203.36,45.35817088]
[1756548989421,0.70000001,203.37,203.36,6.91817088]
[1756548989628,0.70000001,203.37,203.36,45.35817088]
[1756548990528,0.70000001,203.37,203.36,6.91817088]
[1756548990846,0.70000001,203.37,203.36,45.35817088]
[1756548991013,0.70000001,203.37,203.36,6.91817088]
[1756548991220,0.70000001,203.37,203.36,45.35817088]
[1756548992422,1e-08,203.37,203.36,50.7528262]
[1756548993137,1e-08,203.38,203.37,13.59559401]
[1756548993337,1e-08,203.38,203.37,19.1324109]
[1756548994034,1e-08,203.38,203.37,43.13465532]
[1756548995044,1e-08,203.38,203.37,48.0518014]
[1756548995243,1e-08,203.38,203.37,48.7318014]
[1756548996843,1e-08,203.39,203.37,48.7318014]
[1756548997050,1e-08,203.39,203.38,5.39465532]
[1756548997363,1e-08,203.39,203.38,43.81465532]
[1756548998934,1e-08,203.39,203.38,48.73155963]
[1756548999157,1e-08,203.39,203.38,50.70214763]
[1756549000069,1e-08,203.39,203.38,45.30749231]
[1756549000366,0.69000001,203.39,203.38,50.02214763]
[1756549000540,1e-08,203.39,203.38,50.02214763]
[1756549002935,1e-08,203.39,203.38,45.30749231]
[1756549003140,1e-08,203.39,203.38,50.02214763]
[1756549004660,0.06,203.42,203.39,13.59559401]
[1756549004834,0.06,203.42,203.41,4.71465532]
[1756549005564,0.06,203.42,203.41,6.68505032]
[1756549006260,0.06,203.42,203.41,11.60122946]
[1756549006952,0.06,203.42,203.41,6.88657414]
[1756549007155,0.06,203.42,203.41,11.60122946]
[1756549007362,1e-08,203.42,203.41,25.33898504]
[1756549007665,1e-08,203.42,203.41,26.01898504]
[1756549013985,1e-08,203.42,203.41,11.60122946]
[1756549015068,1e-08,203.42,203.41,12.28122946]
[1756549015686,1e-08,203.42,203.41,11.60122946]
[1756549017494,1e-08,203.42,203.41,50.03122946]
[1756549017665,1e-08,203.42,203.41,50.71122946]
[1756549018276,1e-08,203.42,203.41,64.44898504]
[1756549018590,1e-08,203.44,203.43,39.73775558]
[1756549018764,1e-08,203.44,203.43,82.8524109]
[1756549019073,1e-08,203.44,203.43,83.5324109]
[1756549019276,1e-08,203.44,203.43,85.5023199]
[1756549019494,1e-08,203.44,203.43,90.41801571]
[1756549020679,1e-08,203.45,203.44,13.73775558]
[1756549020872,1e-08,203.45,203.44,19.1324109]
[1756549021965,1e-08,203.45,203.44,21.1023199]
[1756549022593,1e-08,203.45,203.44,21.30311876]
[1756549022898,1e-08,203.45,203.44,26.01777408]
[1756549024670,1e-08,203.45,203.44,25.33777408]
[1756549024985,1e-08,203.45,203.44,63.73777408]
[1756549024986,0.70000001,203.45,203.44,63.73777408]
[1756549025600,0.70000001,203.45,203.44,1.969909]
[1756549025969,5.41465533,203.45,203.44,1.969909]
[1756549026278,5.41465533,203.45,203.44,40.349909]
[1756549026785,0.70000001,203.45,203.44,40.349909]
[1756549027200,5.41465533,203.45,203.44,40.349909]
[1756549027496,0.70000001,203.45,203.44,1.969909]
[1756549027713,5.41465533,203.45,203.44,1.969909]
[1756549028604,5.41465533,203.45,203.44,6.88536318]
[1756549029500,5.41465533,203.45,203.44,1.969909]
[1756549031176,5.41465533,203.45,203.44,6.88536318]
[1756549032211,5.41465533,203.45,203.44,1.969909]
[1756549032509,5.41465533,203.45,203.44,6.88536318]
[1756549033507,1e-08,203.45,203.44,11.6000185]
[1756549033714,0.70000001,203.45,203.44,6.88536318]
[1756549034081,4.77465532,203.47,203.44,6.88536318]
[1756549034286,4.77465532,203.47,203.45,38.38]
[1756549034512,4.71465532,203.46,203.45,38.38]
[1756549034681,4.71465532,203.46,203.44,6.88536318]
[1756549034881,4.71465532,203.46,203.44,45.26536318]
[1756549035097,0.06,203.45,203.44,43.29545418]
[1756549035293,4.77465532,203.45,203.43,38.41]
[1756549035691,4.77465532,203.45,203.44,4.774655]
[1756549036197,5.47465532,203.45,203.44,4.774655]
[1756549037293,0.06,203.45,203.44,4.774655]
[1756549037910,0.06,203.45,203.44,9.69010918]
[1756549040624,0.06,203.45,203.44,53.4447645]
[1756549041738,1e-08,203.45,203.44,67.04035851]
[1756549041951,1e-08,203.45,203.44,62.46786476]
[1756549042246,1e-08,203.45,203.44,67.18252008]
[1756549046307,1e-08,203.45,203.44,53.4447645]
[1756549049341,1e-08,203.45,203.44,9.69010918]
[1756549049630,1e-08,203.45,203.44,48.07010918]
[1756549049834,1e-08,203.45,203.44,52.7847645]
[1756549050338,1e-08,203.45,203.44,53.4447645]
[1756549050839,1e-08,203.45,203.44,52.7847645]
[1756549051224,1e-08,203.45,203.44,53.4747645]
[1756549051612,1e-08,203.45,203.44,67.07035851]
[1756549052309,1e-08,203.45,203.44,67.21252008]
[1756549053927,1e-08,203.45,203.44,67.24252008]
[1756549054227,1e-08,203.46,203.44,67.24252008]